Cogmind - Beta 16.1 @@@ ROGUE MODE // 2026.02.21 @ 14:43:22 Player: TheSkyeDoctor Result: Destroyed by G-47 Trooper with Particle Gun Performance ------------- Evolutions (2) 1000 Regions Visited (3) 600 Robots Destroyed (48) 240 Value Destroyed (1206) 1206 Prototype IDs (0) 0 Alien Tech Used (0) 0 Bonus (0) 0 TOTAL SCORE: 3046 Bonus ------- None Cogmind --------- Core Integrity 0/550 Matter 23/300 Energy 100/100 System Corruption 0% Temperature Cool (9) Movement Treading (185) Ox1 Location -8/Materials Parts ------- > --- POWER (1) -------- (None) > --- PROPULSION (2) --- Advanced Treads > --- UTILITY (6) ------ Large Storage Unit Trap Scanner Improved Targeting Computer Core Shielding Power Shielding > --- WEAPON (2) ------- Assault Rifle Improved Grenade Launcher > --- INVENTORY (15) --- Light Nuclear Core Light Nuclear Core Improved Heat Sink Seismic Detector Improved Targeting Computer Target Analyzer Hacking Suite Datajack Peak State ------------ > --- POWER ------------ Light Nuclear Core > --- PROPULSION ------- Advanced Treads Advanced Treads > --- UTILITY ---------- Large Storage Unit Trap Scanner Sensor Array Seismic Detector Particle Charger Power Shielding > --- WEAPON ----------- Assault Rifle Assault Cannon > --- INVENTORY -------- Light Nuclear Core Light Nuclear Core Light Treads Improved Heat Sink Seismic Detector Improved Targeting Computer Improved Targeting Computer Target Analyzer Core Shielding Hacking Suite Assault Rifle Improved Grenade Launcher Improved Grenade Launcher Datajack [Rating: 26] Favorites ----------- Power Light Nuclear Core Engine Ion Engine Power Core Light Nuclear Core Propulsion Light Treads Treads Light Treads Utility Seismic Detector Device Seismic Detector Storage Large Storage Unit Processor Improved Targeting Computer Protection Power Shielding Weapon Assault Rifle Energy Cannon Beam Cannon Ballistic Gun Assault Rifle Ballistic Cannon Assault Cannon Launcher Improved Grenade Launcher Build | -11 -10 -9 -8 ------- Run | Yrd Mat Mat Mat Slots Evolved 4 | . . 2 2 Power . | . . . . Propulsion . | . . . . Utility 4 | . . 2 2 Weapon . | . . . . Parts Attached 32 | 7 3 3 19 Power 4 | 1 1 . 2 Engine 2 | 1 . . 1 Core 2 | . 1 . 1 Reactor . | . . . . Propulsion 6 | 2 . . 4 Treads 6 | 2 . . 4 Leg . | . . . . Wheel . | . . . . Hover . | . . . . Flight . | . . . . Utility 14 | 2 . 3 9 Device 8 | 1 . 1 6 Storage 2 | 1 . 1 . Processor 1 | . . . 1 Hackware . | . . . . Protection 3 | . . 1 2 Artifact . | . . . . Weapon 8 | 2 2 . 4 Energy Gun . | . . . . Energy Cannon 1 | . 1 . . Ballistic Gun 2 | 2 . . . Ballistic Cannon 3 | . 1 . 2 Launcher 2 | . . . 2 Special Weapon . | . . . . Impact Weapon . | . . . . Slashing Weapon . | . . . . Piercing Weapon . | . . . . Special Melee Weapon . | . . . . Unidentified Prototypes . | . . . . Parts Lost 21 | . . . 21 Power 3 | . . . 3 Propulsion 4 | . . . 4 Utility 8 | . . . 8 Weapon 6 | . . . 6 Highest Loss Streak 10 | . . . 10 To Critical Strikes . | . . . . Average Backups 7 | 1 5 8 10 Power 1 | . 1 1 1 Propulsion . | . . . . Utility 3 | . 3 3 4 Weapon 2 | . 1 2 3 Tool/Special . | . . . . Unused Backups 9 | . 1 . 8 Power 2 | . . . 2 Propulsion . | . . . . Utility 6 | . 1 . 5 Weapon . | . . . . Tool/Special 1 | . . . 1 Average Slot Usage (%) 95 | . 100 96 91 Engine 3 | . 12 . . Core 6 | . 1 11 7 Treads 21 | . 28 22 17 Device 22 | . 14 20 31 Storage 11 | . 14 11 9 Protection 6 | . . 9 8 Energy Cannon 4 | . 4 11 . Ballistic Gun 6 | . 18 . 2 Ballistic Cannon 9 | . 4 11 12 Peak Build Rating 26 | 7 10 16 26 Average Rating 13 | 5 7 13 21 On Entrance 8 | . 7 10 16 Avg Prop Armor Cover (%) . | . . . . Naked Turns . | . . . . Heaviest Build 43 | 15 17 34 43 Greatest Support 44 | 40 40 40 44 Greatest Overweight (x) 1 | . . . 1 Average Overweight (x) . | . . . . Largest Inventory Capacity 15 | 8 8 15 15 Average Capacity 11 | 7 8 13 15 Most Carried 15 | 5 8 15 15 Average Carried 7 | 1 5 8 10 Final Capacity 15 | 8 8 15 15 Final Carried 15 | 2 8 15 8 Class Distribution -------------------- 98% | Mutant Dominant Class ---------------- Mutant | -10/Materials Mutant | -9/Materials Mutant | -8/Materials Resources | -11 -10 -9 -8 ----------- Run | Yrd Mat Mat Mat Matter Collected 1103 | 372 110 188 433 Remotely . | . . . . Salvage Created 1408 | 253 246 394 515 Parts 88 | 21 19 16 32 Haulers Intercepted . | . . . . Recyclers Shooed . | . . . . Parts Field Recycled . | . . . . Retrieved Matter . | . . . . Parts Self-Destructed . | . . . . Prevented . | . . . . Parts Restored . | . . . . Kills | -11 -10 -9 -8 ------- Run | Yrd Mat Mat Mat Combat Hostiles Destroyed 35 | . 8 10 17 Guns 11 | . 6 . 5 Cannons 24 | . 2 10 12 Classes Destroyed 10 | 3 2 2 3 Worker 3 | 2 . 1 . Builder 1 | . . . 1 Tunneler 5 | 5 . . . Recycler 3 | 1 . 2 . Watcher 1 | . . 1 . Swarmer 13 | . 3 6 4 Grunt 14 | . 5 1 8 Sentry 6 | . . 3 3 Hunter 1 | . . . 1 Heavy 1 | . . . 1 Best Kill Streak 6 | 4 3 6 4 Combat Bots Only 5 | . 3 5 3 Max Kills in Single Turn 1 | 1 1 1 1 Gunslinging . | . . . . Exploded . | . . . . Melee . | . . . . Uniques/NPCs Destroyed . | . . . . Combat | -11 -10 -9 -8 -------- Run | Yrd Mat Mat Mat Hostile Shots Fired 306 | . 21 62 223 Missed 86 | . 9 19 58 Hits 220 | . 12 43 165 Projectile 220 | . 12 43 165 Critical Strikes 7 | . . 2 5 Damage Taken 2916 | . 146 497 2273 Core 704 | . 11 129 564 Absorbed by Shields 99 | . . . 99 Redirected to Shielding 101 | . . 41 60 Core Remaining (%) 87 | 100 95 67 . Volleys Fired 143 | 17 18 36 72 Largest 2 | 2 2 2 2 Hottest 90 | 40 90 90 90 Shots Fired 273 | 34 36 72 131 Gun 90 | 34 22 . 34 Cannon 181 | . 14 72 95 Launcher 2 | . . . 2 Special . | . . . . Kinetic 225 | 34 29 36 126 Thermal 46 | . 7 36 3 Explosive 2 | . . . 2 Electromagnetic . | . . . . Robot Hit Streak 13 | 10 7 11 13 Robot Miss Streak 5 | 4 1 5 5 Penetration Max . | . . . . Secondary Targets . | . . . . Shots Hit Robots 151 | 21 19 41 70 Core Hits 69 | 9 12 17 31 Critical Kills 1 | . . . 1 Critical Parts Destroyed 1 | 1 . . . Critical Strikes 6 | 1 . . 5 Destroy 2 | 1 . . 1 Blast 4 | . . . 4 Melee Attacks . | . . . . Impact . | . . . . Slashing . | . . . . Piercing . | . . . . Sneak Attacks . | . . . . Combat Hostiles . | . . . . Follow-up Attacks . | . . . . Damage Inflicted 2870 | 260 284 730 1596 Guns 652 | 260 210 . 182 Cannons 2146 | . 74 727 1345 Explosions 69 | . . . 69 Melee . | . . . . Ramming 3 | . . 3 . Kinetic 2354 | 260 249 376 1469 Thermal 444 | . 35 351 58 Explosive 69 | . . . 69 Electromagnetic . | . . . . Impact . | . . . . Slashing . | . . . . Piercing . | . . . . Highest Corruption . | . . . . Average Corruption . | . . . . Corruption Purged . | . . . . Corruption Blocked . | . . . . Overload Shots . | . . . . Overflow Damage 13 | . . . 13 Projectiles 13 | . . . 13 Explosions . | . . . . Melee . | . . . . Knockbacks 18 | . . 2 16 Impact . | . . . . Kinetic 14 | . . 1 13 Secondary 4 | . . 1 3 Self-Inflicted Damage . | . . . . Shots . | . . . . Rammed 1 | . . 1 . Targets Rammed 1 | . . 1 . Kicked . | . . . . Crushed . | . . . . Highest Temperature 126 | . 120 126 84 Average Temperature 28 | . 49 34 20 Received Heat Transfer 861 | . 51 162 648 Siege Activations . | . . . . Martial Activations . | . . . . Shielding Activations . | . . . . Robots Disrupted . | . . . . Combat Hostiles . | . . . . Robots Corrupted . | . . . . Combat Hostiles . | . . . . Parts Fried . | . . . . Impact Corruptions . | . . . . Robots Melted . | . . . . Combat Hostiles . | . . . . Parts Melted 3 | . . 3 . Heat Transferred 925 | . 74 740 111 Parts Sabotaged . | . . . . Parts Stolen . | . . . . Parts Stripped . | . . . . Power Chain Reactions . | . . . . Alert | -11 -10 -9 -8 ------- Run | Yrd Mat Mat Mat Maximum Alert Level . | . . . . Low Security (%) 100 | 100 100 100 100 Level 1 . | . . . . Level 2 . | . . . . Level 3 . | . . . . Level 4 . | . . . . Level 5 . | . . . . High Security . | . . . . Max Security . | . . . . Peak Influence 151 | 10 110 151 117 Initial 50 | . . 18 50 Average 40 | 1 39 61 38 Influence Increases 1068 | 40 241 314 473 Destroy 0b10 Robot/C 700 | . 160 200 340 Destroy 0b10 Robot/NC 65 | 40 . 20 5 Destroy Leader 162 | . 30 52 80 Successful Hack 47 | . 21 26 . Disable Machine 30 | . 15 . 15 Destroy Structure 34 | . . 1 33 Lose Combat Pursuer 30 | . 15 15 . Influence Decreases 1009 | 40 197 239 533 Entered New Map 95 | . . 26 69 Time Decay 754 | 40 197 213 304 Lost Part 160 | . . . 160 Squads Dispatched 5 | . 1 1 3 Investigation 1 | . 1 . . Extermination . | . . . . Reinforcement 4 | . . 1 3 Assault . | . . . . Garrison . | . . . . Intercept . | . . . . Searches Triggered . | . . . . Construction Impeded . | . . . . Haulers Reinforced . | . . . . Active Scanning Responses . | . . . . Cargo Convoy Interrupts . | . . . . Stealth | -11 -10 -9 -8 --------- Run | Yrd Mat Mat Mat Distress Signals 4 | . . 1 3 Communications Jammed . | . . . . Distress Signals . | . . . . Times Spotted 50 | . 10 15 25 Peak Tracking Total 5 | . 3 4 5 Tactical Retreats 2 | . 1 1 . Traps | -11 -10 -9 -8 ------- Run | Yrd Mat Mat Mat Traps Triggered 1 | . 1 . . Indirectly . | . . . . Trap Hack Attempts . | . . . . Triggered . | . . . . Disarmed . | . . . . Reprogrammed . | . . . . Reused . | . . . . Traps Extracted . | . . . . Installed . | . . . . Triggered . | . . . . Machines | -11 -10 -9 -8 ---------- Run | Yrd Mat Mat Mat Machines Disabled 2 | . 1 . 1 Max in Single Turn 1 | . 1 . 1 Machines Repaired . | . . . . Machines Dismantled . | . . . . Machines Sabotaged . | . . . . Overloaded Fab Kills . | . . . . Hacking | -11 -10 -9 -8 --------- Run | Yrd Mat Mat Mat Machines Accessed 8 | . 5 2 1 Terminals 7 | . 5 2 . Fabricators . | . . . . Repair Stations . | . . . . Recycling Units . | . . . . Scanalyzers 1 | . . . 1 Garrison Access . | . . . . Total Hacks 18 | . 13 4 1 Successful 9 | . 5 3 1 Failed 9 | . 8 1 . Catastrophic 1 | . 1 . . Database Lockouts . | . . . . Manual 18 | . 12 6 . Terminals 17 | . 13 4 . Fabricators . | . . . . Repair Stations . | . . . . Recycling Units . | . . . . Scanalyzers 1 | . . . 1 Garrison Access . | . . . . Terminal Hacks 2 | . 2 . . Security Status 1 | . 1 . . Zone Layout 1 | . 1 . . Fabricator Hacks . | . . . . Repair Station Hacks . | . . . . Recycling Unit Hacks . | . . . . Scanalyzer 1 | . . . 1 Retrieve Study 1 | . . . 1 Garrison Access Hacks . | . . . . Unauthorized Hacks 6 | . 3 3 . Terminals 6 | . 3 3 . Track 1 | . 1 . . Assimilate 1 | . 1 . . Botnet 3 | . 1 2 . Operators 1 | . . 1 . Fabricators . | . . . . Repair Stations . | . . . . Recycling Units . | . . . . Scanalyzers . | . . . . Garrison Access . | . . . . Data Cores Recovered . | . . . . Used . | . . . . Hacking Detections 7 | . 5 2 . Full Trace Events 2 | . 2 . . Feedback Events . | . . . . Feedback Blocked . | . . . . Robot Schematics Acquired . | . . . . Robots Built . | . . . . Authchips . | . . . . Time . | . . . . Total Robot Build Rating . | . . . . Part Schematics Acquired . | . . . . Parts Built . | . . . . Authchips . | . . . . Time . | . . . . Total Part Build Rating . | . . . . Part Studies Acquired 1 | . . . 1 Parts Repaired . | . . . . Time . | . . . . Parts Recycled . | . . . . Recycled Matter . | . . . . Retrieved Matter . | . . . . Retrieved Components . | . . . . Parts Scanalyzed . | . . . . Part Schematics Acquired . | . . . . Parts Damaged . | . . . . Bothacking | -11 -10 -9 -8 ------------ Run | Yrd Mat Mat Mat Used RIF Installer . | . . . . Robots Hacked . | . . . . Non-combat . | . . . . Combat . | . . . . Robot Hacks Applied . | . . . . Relay Couplers Released . | . . . . Fabnet Peak Effective % . | . . . . Robots Rewired . | . . . . Allies Hacked . | . . . . Hacks Repelled . | . . . . Allies | -11 -10 -9 -8 -------- Run | Yrd Mat Mat Mat Total Allies . | . . . . Largest Group . | . . . . Highest-Rated Group . | . . . . Highest-Rated Ally . | . . . . Total Orders . | . . . . Ally Attacks . | . . . . Total Damage . | . . . . Kills . | . . . . Allies Corrupted . | . . . . Allies Melted . | . . . . Intel | -11 -10 -9 -8 ------- Run | Yrd Mat Mat Mat Active Infowar (turns) 1872 | 9 594 550 719 Sensors 599 | . . . 599 Terrain 77 | . . . 77 Traps 135 | . . . 135 Seismic 1843 | 9 594 550 690 Robot Analysis Total . | . . . . Derelict Logs Recovered . | . . . . Drone Launches . | . . . . Drone Recoveries . | . . . . Exploration | -11 -10 -9 -8 ------------- Run | Yrd Mat Mat Mat Turns Passed 2192 | 246 594 550 802 Spaces Moved 978 | 123 326 252 277 Core 16 | 16 . . . Treads 962 | 107 326 252 277 Legs . | . . . . Wheels . | . . . . Hover . | . . . . Flight . | . . . . Fastest Speed 50 | 50 160 160 145 Average Speed 167 | 145 160 160 193 Slowest Speed 232 | 160 160 160 232 Overloaded Moves . | . . . . Propulsion Burnouts . | . . . . Robots Hopped . | . . . . Potential Cave-ins . | . . . . Cave-ins Triggered . | . . . . Exploration Rate (%) 25 | 5 50 22 25 Regions Visited 3 Branch Regions . Pre-discovered Areas . | . . . . Known Exits Taken . | . . . . Unknown Exits Taken 3 | 1 1 1 . Scrap Searched . | . . . . Spaces Dug . | . . . . Terrain Destroyed 30 | . . . 30 Melee . | . . . . Projectile 10 | . . . 10 AOE 20 | . . . 20 Terrain Rammed . | . . . . Walls Destroyed . | . . . . Machines Disabled . | . . . . Actions | -11 -10 -9 -8 --------- Run | Yrd Mat Mat Mat Total 1258 | 155 365 326 412 Wait 60 | 1 10 24 25 Move 975 | 122 325 251 277 Hop . | . . . . Pick Up 38 | 8 7 10 13 Fast Attach 1 | 1 . . . Attach 28 | 6 . 2 20 Detach . | . . . . Swap 7 | . 3 1 3 Drop 5 | . 2 1 2 Fire 143 | 17 18 36 72 Melee . | . . . . Ram . | . . . . Kick . | . . . . Crush 1 | . . 1 . Escape Stasis . | . . . . Rewire . | . . . . Trap . | . . . . Miscellaneous . | . . . . Route ------- -11/Scrapyard -10/Materials -9/Materials -8/Materials History --------- Turn | Location | Event 9 | -11/Scrapyard | Discovered new exit (range 16) 247 | -11/Scrapyard | Entered Materials 316 | -10/Materials | Build established: Mutant 785 | -10/Materials | Discovered new exit (range 16) 841 | -10/Materials | Entered another Materials area 841 | -9/Materials | Evolved 2 slots: Utility x2 1333 | -9/Materials | Discovered new exit (range 10) 1391 | -9/Materials | Entered another Materials area 1391 | -8/Materials | Evolved 2 slots: Utility x2 1505 | -8/Materials | Core integrity fell below 50% 1515 | -8/Materials | Lost 10 parts (2p2n4u2w) 2107 | -8/Materials | Core integrity fell below 20% 2193 | -8/Materials | Destroyed by G-47 Trooper with Particle Gun Last Messages --------------- Acquired 12 matter. U-05 Engineer builds a Wall. Imp. Grenade Launcher destroyed. The unstable cave ceiling collapses. S-10 Pest destroyed. Acquired 12 matter. U-05 Engineer builds a Wall. K-01 Serf collects debris. U-05 Engineer lays Concrete. Lgt. Treads destroyed. U-05 Engineer builds a Wall. Seismic Detector destroyed. Lgt. Nuclear Core destroyed. U-05 Engineer lays Concrete. U-05 Engineer builds a Wall. S-10 Pest suffers critical hit (Destroy). S-10 Pest destroyed. U-05 Engineer lays Concrete. U-05 Engineer builds a Wall. Acquired 16 matter. Map ----- +----------------------------------------------------+ | ?????????????????????????????????????????????????? | | ?????????????????????????????????????????????????? | | ?????????????????????????????????????????????????? | | ?????????????????????????????????????????????????? | | ???????????????????????????? ???????????????????? | | ???????????????????????????== ???? ?????????????? | | ???????????????????????????= ???? ????????????? | | ??????????????????????????!= ???? #???????????? | | ??????????????????????????? ???? #???????????? | | ?????????????? ########??? ???? #???????????? | | ???????????????? #####+##### +???????????? | | ????????????????? #???????????? | | ?????????????????? ^ ^ #???????????? | | ???????????????????#^^ !!! ] ????????????? | | ???????????????????# ^ !^!! #?????????????? | | ???????????????????# !^ #?????????????? | | ???????????????????#^^^ ! #?????????????? | | ???????????????????# % #?????????????? | | ???????????????????# !#?????????????? | | ???????????????????# /[ / #?????????????? | | ???????????????????# [ #?????????????? | | ???????????????????# #"T"##### #???????? ###?? | | ???????????????????# #"""#???# ####### #?? | | ???????????????##### ######### % #?? | | ???????????????#== # u %[ #?? | | ???????????????#== #=@[ ! ## #?? | | ???????????????#== # "S ## #######% #?? | | ???????????????#== g*""" u## ##???????###??? | | ???????????????#!! # "" u## ##????????????? | | ? ?????????????#!! # k ## # ???###??????? | | ????????????##?##### ######### ? #??????? | | ?################## # #??????? | | ?# # k # """ # #??????? | | ?#! *!! # + ]""" / + ??????????? | | ?# * # #????" # # !???????????? | | ?# !!! + ####### #??????# #?????????????? | | ?# # #############??????# %#?????????????? | | ?# # ## #????????#= #?????????????? | | ?######## ## #????????#% #?????????????? | | ######"# # #????????#[=!#?????????????? | | # #????????#%|%#?????????????? | | % % %" = % "" #????????# =#?????????????? | | % # ""%""" #????????# %#?????????????? | | ####+### #"R!%""" #????????# *#?????????????? | | ?? ## ##""" """ #????????#% #?????????????? | | # """ [##%% ## #????????# #?????????????? | | # """ ## ##+########????????# "?????????????? | | # """ ## # #????????? #?????????????? | | # ## + #????????? ??????????????? | | # ! ## # #?????????^ ??????????????? | +----------------------------------------------------+ Best States ------------- Heat Dissipation 45 Energy Generation 14 Energy Capacity 250 Matter Stores 300 Matter Capacity 300 Sight Range 16 Robot Scan Range 14 Terrain Scan Range 16 Terrain Scan Density 10 Core Shielding 20 Power Shielding 33 Weapon Shielding 33 Evasion (%) 50 Targeting Accuracy 6 Recoil Reduction 2 Particle Charging 15 Item Schematics ----------------- None Robot Schematics ------------------ None Fabricated ------------ Nothing Repaired ---------- Nothing Studied --------- Adv. Treads | -8/Materials | Hacked Alien Tech Used ----------------- None Achievements -------------- True Hacker Challenges ------------ None Game ------ Seed GrenadeInterdictionMatter Manual? 0 Play Time 00:18:03 Cumulative 35.2 hours Start 2026.02.21 @ 14:26:19 End 2026.02.21 @ 14:43:22 Sessions 1 Manual Loads 0 Difficulty Rogue Special Mode None Game No. 82 Rogue 82 Adventurer 0 Explorer 0 Win Type - Total 0 Types 0/0/0/0/0/0/0/0/0/0 Lore% 24 Gallery% 33 Achievement% 23 Wizard Run 0 Options --------- Layout 1 ASCII 0 Keyboard 0 Movement Mouse Keybinds 0 Fullscreen 1 Font 24/Smallcaps Map View 50x35 Zoom Use 0% Tactical HUD 0 Map Filters NONE Filters NONE Steam 1 RUN: 092757f0-6962-4d79-8678-9c690445fd3e